[Event "Titled Tuesday Blitz May 24 Late 2022"]
[White "Silva, Pedro Gil Ferreira Da"]
[Black "Nazaretyan, Tigran"]
[WhiteFideId "1946102"]
[BlackFideId "24162345"]
[WhiteElo "1863"]
[BlackElo "2225"]
[Result "0-1"]
[Round "06"]
[TimeControl "180+1"]
[Date "2022.05.25"]
[WhiteClock "0:02:21"]
[BlackClock "0:01:38"]

1. e4 {[%clk 0:03:00]}  c5 {[%clk 0:02:59]} 2. Nf3 {[%clk 0:03:00]}  Nc6 {[%clk 0:02:58]} 3. Bb5 {[%clk 0:03:01]}  g6 {[%clk 0:02:58]} 4. c3 {[%clk 0:03:01]}  Nf6 {[%clk 0:02:56]} 5. O-O {[%clk 0:02:59]}  Nxe4 {[%clk 0:02:53]} 6. d4 {[%clk 0:03:00]}  cxd4 {[%clk 0:02:53]} 7. cxd4 {[%clk 0:03:00]}  d5 {[%clk 0:02:52]} 8. Ne5 {[%clk 0:02:59]}  Bd7 {[%clk 0:02:51]} 9. Bxc6 {[%clk 0:02:58]}  Bxc6 {[%clk 0:02:40]} 10. Qf3 {[%clk 0:02:57]}  f6 {[%clk 0:02:28]} 11. Nxc6 {[%clk 0:02:57]}  bxc6 {[%clk 0:02:29]} 12. Nd2 {[%clk 0:02:58]}  f5 {[%clk 0:02:24]} 13. Qb3 {[%clk 0:02:53]}  Qb6 {[%clk 0:02:22]} 14. Qa4 {[%clk 0:02:48]}  Bg7 {[%clk 0:02:15]} 15. Nb3 {[%clk 0:02:48]}  O-O {[%clk 0:02:10]} 16. Bf4 {[%clk 0:02:48]}  Qb5 {[%clk 0:02:03]} 17. Qa3 {[%clk 0:02:45]}  Rfe8 {[%clk 0:01:59]} 18. Rac1 {[%clk 0:02:44]}  a5 {[%clk 0:01:55]} 19. Rfd1 {[%clk 0:02:37]}  Bf8 {[%clk 0:01:45]} 20. Nc5 {[%clk 0:02:33]}  e5 {[%clk 0:01:44]} 21. Be3 {[%clk 0:02:24]}  f4 {[%clk 0:01:41]} 22. Bd2 {[%clk 0:02:21]}  exd4 {[%clk 0:01:38]} 0-1


[Site "https://www.chess.com"]

[Event "Titled Tuesday Blitz May 24 Late 2022"]
[White "Sirosh, Ilja"]
[Black "Mekhitarian, Krikor Sevag"]
[WhiteFideId "4500458"]
[BlackFideId "2107660"]
[WhiteElo "2241"]
[BlackElo "2598"]
[Result "0-1"]
[Round "06"]
[TimeControl "180+1"]
[Date "2022.05.24"]
[WhiteClock "0:00:04"]
[BlackClock "0:00:29"]

1. e4 {[%clk 0:03:00]}  e5 {[%clk 0:03:00]} 2. Nf3 {[%clk 0:03:00]}  Nf6 {[%clk 0:03:00]} 3. Nc3 {[%clk 0:03:00]}  Nc6 {[%clk 0:02:59]} 4. h3 {[%clk 0:03:00]}  g6 {[%clk 0:02:55]} 5. Bc4 {[%clk 0:02:59]}  Bg7 {[%clk 0:02:54]} 6. d3 {[%clk 0:02:59]}  O-O {[%clk 0:02:55]} 7. O-O {[%clk 0:02:59]}  d6 {[%clk 0:02:54]} 8. a4 {[%clk 0:02:58]}  h6 {[%clk 0:02:53]} 9. Be3 {[%clk 0:02:58]}  Kh7 {[%clk 0:02:51]} 10. Qd2 {[%clk 0:02:56]}  Nh5 {[%clk 0:02:40]} 11. g4 {[%clk 0:02:42]}  Nf4 {[%clk 0:02:40]} 12. Bxf4 {[%clk 0:02:42]}  exf4 {[%clk 0:02:39]} 13. Qxf4 {[%clk 0:02:43]}  Ne5 {[%clk 0:02:21]} 14. Nxe5 {[%clk 0:02:38]}  dxe5 {[%clk 0:02:14]} 15. Qe3 {[%clk 0:02:36]}  c6 {[%clk 0:02:14]} 16. Ne2 {[%clk 0:02:33]}  Qe7 {[%clk 0:02:07]} 17. c3 {[%clk 0:02:30]}  Bd7 {[%clk 0:02:05]} 18. Rae1 {[%clk 0:02:22]}  a6 {[%clk 0:02:05]} 19. a5 {[%clk 0:02:20]}  Rae8 {[%clk 0:02:05]} 20. b4 {[%clk 0:02:18]}  Bf6 {[%clk 0:02:01]} 21. f4 {[%clk 0:02:11]}  exf4 {[%clk 0:02:01]} 22. Qxf4 {[%clk 0:02:11]}  Bg5 {[%clk 0:01:55]} 23. Qg3 {[%clk 0:02:09]}  Bh4 {[%clk 0:01:55]} 24. Qc7 {[%clk 0:01:55]}  Bxe1 {[%clk 0:01:55]} 25. Rxe1 {[%clk 0:01:56]}  Be6 {[%clk 0:01:48]} 26. Qxe7 {[%clk 0:01:51]}  Rxe7 {[%clk 0:01:49]} 27. Bxe6 {[%clk 0:01:50]}  Rxe6 {[%clk 0:01:43]} 28. Nd4 {[%clk 0:01:48]}  Rd6 {[%clk 0:01:40]} 29. e5 {[%clk 0:01:46]}  Rd5 {[%clk 0:01:28]} 30. e6 {[%clk 0:01:47]}  Re8 {[%clk 0:01:24]} 31. exf7 {[%clk 0:01:43]}  Rxe1+ {[%clk 0:01:23]} 32. Kf2 {[%clk 0:01:43]}  Kg7 {[%clk 0:01:22]} 33. Kxe1 {[%clk 0:01:38]}  Kxf7 {[%clk 0:01:16]} 34. Ke2 {[%clk 0:01:37]}  c5 {[%clk 0:01:15]} 35. Nc2 {[%clk 0:01:15]}  cxb4 {[%clk 0:01:14]} 36. cxb4 {[%clk 0:01:16]}  Ke6 {[%clk 0:01:10]} 37. d4 {[%clk 0:01:16]}  Rd8 {[%clk 0:01:02]} 38. Kd3 {[%clk 0:01:14]}  Rf8 {[%clk 0:01:02]} 39. Ke4 {[%clk 0:01:13]}  g5 {[%clk 0:00:58]} 40. Ne3 {[%clk 0:01:10]}  Rf4+ {[%clk 0:00:57]} 41. Kd3 {[%clk 0:01:10]}  Rf3 {[%clk 0:00:51]} 42. Ke4 {[%clk 0:01:10]}  Rf4+ {[%clk 0:00:42]} 43. Kd3 {[%clk 0:01:10]}  h5 {[%clk 0:00:43]} 44. Kc4 {[%clk 0:00:38]}  h4 {[%clk 0:00:39]} 45. Kc5 {[%clk 0:00:36]}  Rf3 {[%clk 0:00:38]} 46. d5+ {[%clk 0:00:36]}  Kd7 {[%clk 0:00:37]} 47. Nc4 {[%clk 0:00:36]}  Rxh3 {[%clk 0:00:37]} 48. Ne5+ {[%clk 0:00:36]}  Kc8 {[%clk 0:00:31]} 49. d6 {[%clk 0:00:31]}  Re3 {[%clk 0:00:30]} 50. Nc4 {[%clk 0:00:04]}  Rc3 {[%clk 0:00:29]} 0-1


[Site "https://www.chess.com"]

[Event "Titled Tuesday Blitz May 24 Late 2022"]
[White "Skytte, Rasmus"]
[Black "Petrovic, Aleksa"]
[WhiteFideId "1404210"]
[BlackFideId "967629"]
[WhiteElo "2430"]
[BlackElo "2144"]
[Result "1-0"]
[Round "06"]
[TimeControl "180+1"]
[Date "2022.05.25"]
[WhiteClock "0:00:10"]
[BlackClock "0:00:02"]

1. d4 {[%clk 0:03:00]}  Nf6 {[%clk 0:02:56]} 2. c4 {[%clk 0:02:58]}  e6 {[%clk 0:02:53]} 3. Nc3 {[%clk 0:02:57]}  Bb4 {[%clk 0:02:52]} 4. Nf3 {[%clk 0:02:57]}  c5 {[%clk 0:02:49]} 5. g3 {[%clk 0:02:54]}  Nc6 {[%clk 0:02:48]} 6. Bg2 {[%clk 0:02:53]}  Ne4 {[%clk 0:02:47]} 7. Bd2 {[%clk 0:02:51]}  Nxd2 {[%clk 0:02:47]} 8. Qxd2 {[%clk 0:02:50]}  cxd4 {[%clk 0:02:47]} 9. Nxd4 {[%clk 0:02:49]}  a6 {[%clk 0:02:42]} 10. O-O {[%clk 0:02:46]}  O-O {[%clk 0:02:41]} 11. a3 {[%clk 0:02:40]}  Be7 {[%clk 0:02:36]} 12. Rfd1 {[%clk 0:02:20]}  Qc7 {[%clk 0:02:35]} 13. Rac1 {[%clk 0:02:16]}  Ne5 {[%clk 0:02:31]} 14. Qf4 {[%clk 0:02:04]}  d6 {[%clk 0:02:21]} 15. Ne4 {[%clk 0:01:50]}  Bd7 {[%clk 0:02:14]} 16. b4 {[%clk 0:01:42]}  Rac8 {[%clk 0:02:07]} 17. c5 {[%clk 0:01:39]}  d5 {[%clk 0:01:42]} 18. Nc3 {[%clk 0:01:27]}  Nc4 {[%clk 0:01:34]} 19. Qxc7 {[%clk 0:01:26]}  Rxc7 {[%clk 0:01:35]} 20. a4 {[%clk 0:01:22]}  Nb2 {[%clk 0:01:34]} 21. Rd2 {[%clk 0:01:17]}  Nxa4 {[%clk 0:01:29]} 22. Nxa4 {[%clk 0:01:16]}  Bxa4 {[%clk 0:01:28]} 23. e4 {[%clk 0:01:13]}  e5 {[%clk 0:01:19]} 24. exd5 {[%clk 0:01:07]}  exd4 {[%clk 0:01:13]} 25. Rxd4 {[%clk 0:01:08]}  Rd8 {[%clk 0:01:00]} 26. d6 {[%clk 0:00:42]}  Rxd6 {[%clk 0:00:49]} 27. Rxd6 {[%clk 0:00:38]}  Bxd6 {[%clk 0:00:48]} 28. Ra1 {[%clk 0:00:38]}  Bxc5 {[%clk 0:00:15]} 29. Rxa4 {[%clk 0:00:37]}  Bf8 {[%clk 0:00:15]} 30. b5 {[%clk 0:00:33]}  axb5 {[%clk 0:00:13]} 31. Ra7 {[%clk 0:00:32]}  Rc1+ {[%clk 0:00:13]} 32. Bf1 {[%clk 0:00:31]}  b4 {[%clk 0:00:09]} 33. Rxb7 {[%clk 0:00:31]}  Rb1 {[%clk 0:00:09]} 34. Kg2 {[%clk 0:00:29]}  b3 {[%clk 0:00:03]} 35. Bc4 {[%clk 0:00:29]}  b2 {[%clk 0:00:04]} 36. Bxf7+ {[%clk 0:00:29]}  Kh8 {[%clk 0:00:04]} 37. Ba2 {[%clk 0:00:27]}  Ra1 {[%clk 0:00:03]} 38. Rxb2 {[%clk 0:00:27]}  g6 {[%clk 0:00:03]} 39. Bd5 {[%clk 0:00:24]}  Kg7 {[%clk 0:00:03]} 40. Rb7+ {[%clk 0:00:22]}  Kh6 {[%clk 0:00:03]} 41. Bg8 {[%clk 0:00:21]}  Bg7 {[%clk 0:00:03]} 42. h4 {[%clk 0:00:20]}  Re1 {[%clk 0:00:03]} 43. Rb5 {[%clk 0:00:18]}  Re5 {[%clk 0:00:03]} 44. Rb4 {[%clk 0:00:17]}  g5 {[%clk 0:00:02]} 45. Rb6+ {[%clk 0:00:16]}  Kh5 {[%clk 0:00:02]} 46. Bf7+ {[%clk 0:00:16]}  Kg4 {[%clk 0:00:02]} 47. f3+ {[%clk 0:00:14]}  Kf5 {[%clk 0:00:02]} 48. g4+ {[%clk 0:00:14]}  Kf4 {[%clk 0:00:02]} 49. Rb4+ {[%clk 0:00:14]}  Ke3 {[%clk 0:00:03]} 50. hxg5 {[%clk 0:00:14]}  Rxg5 {[%clk 0:00:03]} 51. Re4+ {[%clk 0:00:14]}  Kd3 {[%clk 0:00:03]} 52. Be6 {[%clk 0:00:14]}  h5 {[%clk 0:00:02]} 53. Bf5 {[%clk 0:00:14]}  h4 {[%clk 0:00:02]} 54. Kh3 {[%clk 0:00:11]}  Kd2 {[%clk 0:00:02]} 55. Re6 {[%clk 0:00:10]}  Bd4 {[%clk 0:00:01]} 56. Kxh4 {[%clk 0:00:10]}  Rg8 {[%clk 0:00:01]} 57. Rd6 {[%clk 0:00:10]}  Rh8+ {[%clk 0:00:02]} 58. Kg3 {[%clk 0:00:10]}  Ke3 {[%clk 0:00:03]} 59. Re6+ {[%clk 0:00:09]}  Kd2 {[%clk 0:00:02]} 60. Kf4 {[%clk 0:00:10]}  Kc3 {[%clk 0:00:03]} 61. Ke4 {[%clk 0:00:10]}  Rb8 {[%clk 0:00:01]} 62. g5 {[%clk 0:00:10]}  Rb4 {[%clk 0:00:01]} 63. Rc6+ {[%clk 0:00:09]}  Bc5+ {[%clk 0:00:01]} 64. Kd5 {[%clk 0:00:09]}  Rd4+ {[%clk 0:00:01]} 65. Kxc5 {[%clk 0:00:09]}  Rf4 {[%clk 0:00:02]} 66. Kd6+ {[%clk 0:00:09]}  Kd4 {[%clk 0:00:01]} 67. Be4 {[%clk 0:00:09]}  Rh4 {[%clk 0:00:02]} 68. g6 {[%clk 0:00:09]}  Rh6 {[%clk 0:00:02]} 69. Ke6 {[%clk 0:00:09]}  Ke3 {[%clk 0:00:03]} 70. Kf6 {[%clk 0:00:09]}  Kf4 {[%clk 0:00:03]} 71. Kf7 {[%clk 0:00:09]}  Kg5 {[%clk 0:00:03]} 72. Rc5+ {[%clk 0:00:09]}  Kf4 {[%clk 0:00:02]} 73. g7 {[%clk 0:00:10]} 1-0


[Site "https://www.chess.com"]

[Event "Titled Tuesday Blitz May 24 Late 2022"]
[White "Stojanovski, Sandi"]
[Black "Wachinger, Nikolas"]
[WhiteFideId "1403249"]
[BlackFideId "12962791"]
[WhiteElo "2354"]
[BlackElo "2227"]
[Result "0-1"]
[Round "06"]
[TimeControl "180+1"]
[Date "2022.05.25"]
[WhiteClock "0:00:01"]
[BlackClock "0:00:02"]

1. d3 {[%clk 0:03:00]}  d5 {[%clk 0:02:57]} 2. Nf3 {[%clk 0:03:01]}  Nf6 {[%clk 0:02:56]} 3. g3 {[%clk 0:03:02]}  g6 {[%clk 0:02:56]} 4. Bg2 {[%clk 0:03:03]}  Bg7 {[%clk 0:02:56]} 5. O-O {[%clk 0:03:04]}  O-O {[%clk 0:02:56]} 6. c4 {[%clk 0:03:04]}  d4 {[%clk 0:02:52]} 7. b4 {[%clk 0:03:03]}  c5 {[%clk 0:02:47]} 8. bxc5 {[%clk 0:02:50]}  Nc6 {[%clk 0:02:47]} 9. Nbd2 {[%clk 0:02:31]}  e5 {[%clk 0:02:34]} 10. Nb3 {[%clk 0:02:30]}  Re8 {[%clk 0:02:28]} 11. Bg5 {[%clk 0:02:26]}  Qc7 {[%clk 0:02:24]} 12. Nfd2 {[%clk 0:02:15]}  Bf5 {[%clk 0:02:03]} 13. Bxf6 {[%clk 0:02:13]}  Bxf6 {[%clk 0:02:04]} 14. Ne4 {[%clk 0:02:13]}  Be7 {[%clk 0:02:04]} 15. Qc1 {[%clk 0:02:06]}  a5 {[%clk 0:01:48]} 16. a4 {[%clk 0:01:59]}  Nb4 {[%clk 0:01:48]} 17. Qh6 {[%clk 0:01:50]}  Bxe4 {[%clk 0:01:27]} 18. Bxe4 {[%clk 0:01:48]}  Bxc5 {[%clk 0:01:28]} 19. Nxc5 {[%clk 0:01:41]}  Qxc5 {[%clk 0:01:29]} 20. Bxb7 {[%clk 0:01:41]}  Rab8 {[%clk 0:01:28]} 21. Bf3 {[%clk 0:01:36]}  Rb6 {[%clk 0:01:16]} 22. h4 {[%clk 0:01:15]}  Rf6 {[%clk 0:01:16]} 23. Qg5 {[%clk 0:01:03]}  Rf5 {[%clk 0:01:11]} 24. Qd2 {[%clk 0:00:56]}  Kg7 {[%clk 0:01:08]} 25. h5 {[%clk 0:00:52]}  Qe7 {[%clk 0:00:46]} 26. h6+ {[%clk 0:00:49]}  Kg8 {[%clk 0:00:46]} 27. Be4 {[%clk 0:00:46]}  Rh5 {[%clk 0:00:45]} 28. Kg2 {[%clk 0:00:40]}  f5 {[%clk 0:00:27]} 29. Bf3 {[%clk 0:00:34]}  Rg5 {[%clk 0:00:25]} 30. Bd5+ {[%clk 0:00:34]}  Kh8 {[%clk 0:00:23]} 31. Rab1 {[%clk 0:00:32]}  f4 {[%clk 0:00:21]} 32. Rh1 {[%clk 0:00:20]}  Rf8 {[%clk 0:00:20]} 33. Rh3 {[%clk 0:00:15]}  Qf6 {[%clk 0:00:19]} 34. f3 {[%clk 0:00:12]}  Rxg3+ {[%clk 0:00:16]} 35. Rxg3 {[%clk 0:00:13]}  fxg3 {[%clk 0:00:17]} 36. Kxg3 {[%clk 0:00:12]}  g5 {[%clk 0:00:17]} 37. Rh1 {[%clk 0:00:09]}  Qg6 {[%clk 0:00:16]} 38. Be4 {[%clk 0:00:06]}  Qf6 {[%clk 0:00:14]} 39. Kg2 {[%clk 0:00:06]}  Rg8 {[%clk 0:00:14]} 40. Rh3 {[%clk 0:00:04]}  g4 {[%clk 0:00:14]} 41. Rg3 {[%clk 0:00:04]}  gxf3+ {[%clk 0:00:13]} 42. Bxf3 {[%clk 0:00:05]}  Rxg3+ {[%clk 0:00:09]} 43. Kxg3 {[%clk 0:00:06]}  Qg6+ {[%clk 0:00:09]} 44. Kf2 {[%clk 0:00:05]}  Qf6 {[%clk 0:00:07]} 45. Qc1 {[%clk 0:00:05]}  Qh4+ {[%clk 0:00:07]} 46. Kg2 {[%clk 0:00:05]}  Na6 {[%clk 0:00:03]} 47. Be4 {[%clk 0:00:04]}  Nc5 {[%clk 0:00:03]} 48. Qb2 {[%clk 0:00:02]}  Qg4+ {[%clk 0:00:02]} 49. Kf2 {[%clk 0:00:01]}  Qf4+ {[%clk 0:00:02]} 50. Bf3 {[%clk 0:00:01]}  Qxh6 {[%clk 0:00:02]} 0-1


[Site "https://www.chess.com"]

[Event "Titled Tuesday Blitz May 24 Late 2022"]
[White "Taboas Rodriguez, Daniel"]
[Black "Escudero Donoso, Felipe"]
[WhiteFideId "2208466"]
[BlackFideId "3410595"]
[WhiteElo "2429"]
[BlackElo "2184"]
[Result "1-0"]
[Round "06"]
[TimeControl "180+1"]
[Date "2022.05.25"]
[WhiteClock "0:01:40"]
[BlackClock "0:01:08"]

1. d4 {[%clk 0:03:00]}  Nf6 {[%clk 0:02:59]} 2. Nf3 {[%clk 0:03:00]}  d5 {[%clk 0:02:59]} 3. c4 {[%clk 0:03:00]}  e6 {[%clk 0:03:00]} 4. Bg5 {[%clk 0:02:59]}  dxc4 {[%clk 0:02:59]} 5. Nc3 {[%clk 0:02:59]}  c6 {[%clk 0:02:57]} 6. a4 {[%clk 0:02:58]}  Bb4 {[%clk 0:02:56]} 7. e4 {[%clk 0:02:56]}  Qa5 {[%clk 0:02:57]} 8. Bd2 {[%clk 0:02:55]}  c5 {[%clk 0:02:55]} 9. Bxc4 {[%clk 0:02:41]}  cxd4 {[%clk 0:02:55]} 10. Nxd4 {[%clk 0:02:42]}  Qc5 {[%clk 0:02:52]} 11. Bb5+ {[%clk 0:02:42]}  Bd7 {[%clk 0:02:51]} 12. Nb3 {[%clk 0:02:38]}  Qc7 {[%clk 0:02:51]} 13. O-O {[%clk 0:02:34]}  Nc6 {[%clk 0:02:47]} 14. Rc1 {[%clk 0:02:25]}  O-O {[%clk 0:02:38]} 15. Nd5 {[%clk 0:02:08]}  exd5 {[%clk 0:02:24]} 16. Bxb4 {[%clk 0:02:08]}  Ng4 {[%clk 0:02:03]} 17. g3 {[%clk 0:02:02]}  dxe4 {[%clk 0:01:42]} 18. Bd6 {[%clk 0:01:59]}  Qb6 {[%clk 0:01:26]} 19. Bxf8 {[%clk 0:01:58]}  Rxf8 {[%clk 0:01:13]} 20. Qxd7 {[%clk 0:01:57]}  e3 {[%clk 0:01:13]} 21. Qxg4 {[%clk 0:01:56]}  exf2+ {[%clk 0:01:12]} 22. Rxf2 {[%clk 0:01:56]}  Ne5 {[%clk 0:01:13]} 23. Qd4 {[%clk 0:01:53]}  Qe6 {[%clk 0:01:08]} 24. Nc5 {[%clk 0:01:40]} 1-0


[Site "https://www.chess.com"]

[Event "Titled Tuesday Blitz May 24 Late 2022"]
[White "Tanenbaum, Zachary"]
[Black "Pesotskiy, Mikhail"]
[WhiteFideId "2060850"]
[BlackFideId "34164453"]
[WhiteElo "2168"]
[BlackElo "2010"]
[Result "0-1"]
[Round "06"]
[TimeControl "180+1"]
[Date "2022.05.25"]
[WhiteClock "0:00:05"]
[BlackClock "0:00:14"]

1. e4 {[%clk 0:02:59]}  e6 {[%clk 0:02:59]} 2. d4 {[%clk 0:03:00]}  d5 {[%clk 0:02:58]} 3. Nc3 {[%clk 0:03:01]}  Bb4 {[%clk 0:02:51]} 4. exd5 {[%clk 0:03:01]}  exd5 {[%clk 0:02:50]} 5. Bd3 {[%clk 0:03:01]}  c6 {[%clk 0:02:48]} 6. Nf3 {[%clk 0:03:01]}  Nf6 {[%clk 0:02:48]} 7. O-O {[%clk 0:03:01]}  O-O {[%clk 0:02:48]} 8. Bg5 {[%clk 0:02:54]}  Bg4 {[%clk 0:02:48]} 9. h3 {[%clk 0:02:54]}  Bh5 {[%clk 0:02:48]} 10. Bf5 {[%clk 0:02:55]}  Bg6 {[%clk 0:02:03]} 11. Nh4 {[%clk 0:02:53]}  h6 {[%clk 0:01:56]} 12. Nxg6 {[%clk 0:02:31]}  fxg6 {[%clk 0:01:53]} 13. Be6+ {[%clk 0:02:31]}  Kh7 {[%clk 0:01:54]} 14. Bh4 {[%clk 0:02:25]}  Qd6 {[%clk 0:01:38]} 15. Re1 {[%clk 0:02:17]}  Re8 {[%clk 0:01:39]} 16. Bg3 {[%clk 0:02:03]}  Qf8 {[%clk 0:01:29]} 17. Qd3 {[%clk 0:01:54]}  Ne4 {[%clk 0:01:13]} 18. Nxe4 {[%clk 0:01:54]}  Bxe1 {[%clk 0:01:11]} 19. Rxe1 {[%clk 0:01:54]}  dxe4 {[%clk 0:01:06]} 20. Rxe4 {[%clk 0:01:53]}  Qf6 {[%clk 0:00:55]} 21. d5 {[%clk 0:01:44]}  cxd5 {[%clk 0:00:51]} 22. Bxd5 {[%clk 0:01:45]}  Rxe4 {[%clk 0:00:47]} 23. Bxb7 {[%clk 0:01:30]}  Rd4 {[%clk 0:00:23]} 24. Qe2 {[%clk 0:01:15]}  Rb4 {[%clk 0:00:20]} 25. Bxa8 {[%clk 0:01:14]}  Rxb2 {[%clk 0:00:20]} 26. Be5 {[%clk 0:01:07]}  Rb1+ {[%clk 0:00:21]} 27. Kh2 {[%clk 0:01:08]}  Qe7 {[%clk 0:00:22]} 28. Be4 {[%clk 0:00:49]}  Nd7 {[%clk 0:00:19]} 29. Bg3 {[%clk 0:00:45]}  Qe8 {[%clk 0:00:13]} 30. c4 {[%clk 0:00:42]}  Nf6 {[%clk 0:00:12]} 31. f3 {[%clk 0:00:29]}  Nxe4 {[%clk 0:00:09]} 32. fxe4 {[%clk 0:00:30]}  Qd7 {[%clk 0:00:09]} 33. c5 {[%clk 0:00:23]}  Qd1 {[%clk 0:00:10]} 34. Qxd1 {[%clk 0:00:23]}  Rxd1 {[%clk 0:00:10]} 35. c6 {[%clk 0:00:23]}  Rc1 {[%clk 0:00:11]} 36. c7 {[%clk 0:00:24]}  Kg8 {[%clk 0:00:12]} 37. Bf4 {[%clk 0:00:23]}  Rc2 {[%clk 0:00:12]} 38. Kg3 {[%clk 0:00:24]}  Kf7 {[%clk 0:00:12]} 39. Kf3 {[%clk 0:00:24]}  Ke6 {[%clk 0:00:12]} 40. a4 {[%clk 0:00:17]}  g5 {[%clk 0:00:09]} 41. Bg3 {[%clk 0:00:15]}  Rc3+ {[%clk 0:00:09]} 42. Kg4 {[%clk 0:00:15]}  g6 {[%clk 0:00:07]} 43. Bh2 {[%clk 0:00:09]}  Kf6 {[%clk 0:00:05]} 44. e5+ {[%clk 0:00:06]}  Ke6 {[%clk 0:00:06]} 45. h4 {[%clk 0:00:06]}  gxh4 {[%clk 0:00:06]} 46. Kxh4 {[%clk 0:00:07]}  Rxc7 {[%clk 0:00:07]} 47. Kg4 {[%clk 0:00:06]}  Rc4+ {[%clk 0:00:08]} 48. Kf3 {[%clk 0:00:06]}  Rxa4 {[%clk 0:00:08]} 49. Bf4 {[%clk 0:00:06]}  g5 {[%clk 0:00:08]} 50. Be3 {[%clk 0:00:07]}  Kxe5 {[%clk 0:00:08]} 51. Bf2 {[%clk 0:00:07]}  Kf5 {[%clk 0:00:06]} 52. Kg3 {[%clk 0:00:07]}  Ra3+ {[%clk 0:00:06]} 53. Kh2 {[%clk 0:00:07]}  Ra2 {[%clk 0:00:07]} 54. Bd4 {[%clk 0:00:07]}  a5 {[%clk 0:00:08]} 55. Bg7 {[%clk 0:00:07]}  h5 {[%clk 0:00:09]} 56. Bh6 {[%clk 0:00:07]}  a4 {[%clk 0:00:09]} 57. Bf8 {[%clk 0:00:07]}  Kg4 {[%clk 0:00:10]} 58. Bd6 {[%clk 0:00:06]}  Rc2 {[%clk 0:00:11]} 59. Kg1 {[%clk 0:00:06]}  Rc6 {[%clk 0:00:10]} 60. Ba3 {[%clk 0:00:06]}  Rc3 {[%clk 0:00:10]} 61. Bb4 {[%clk 0:00:07]}  Rb3 {[%clk 0:00:11]} 62. Bc5 {[%clk 0:00:07]}  a3 {[%clk 0:00:12]} 63. Kh2 {[%clk 0:00:06]}  a2 {[%clk 0:00:13]} 64. Bf2 {[%clk 0:00:05]}  Rb1 {[%clk 0:00:14]} 65. Bd4 {[%clk 0:00:05]}  a1=Q {[%clk 0:00:14]} 66. Be3 {[%clk 0:00:05]}  Rh1# {[%clk 0:00:14]} 0-1


[Site "https://www.chess.com"]

[Event "Titled Tuesday Blitz May 24 Late 2022"]
[White "Vasquez Schroeder, Rodrigo"]
[Black "Yanayt, Eugene"]
[WhiteFideId "3400042"]
[BlackFideId "2020165"]
[WhiteElo "2567"]
[BlackElo "2046"]
[Result "1-0"]
[Round "06"]
[TimeControl "180+1"]
[Date "2022.05.24"]
[WhiteClock "0:01:40"]
[BlackClock "0:00:03"]

1. e4 {[%clk 0:03:00]}  c5 {[%clk 0:02:57]} 2. Nf3 {[%clk 0:03:01]}  d6 {[%clk 0:02:57]} 3. d4 {[%clk 0:03:01]}  cxd4 {[%clk 0:02:57]} 4. Nxd4 {[%clk 0:03:02]}  Nf6 {[%clk 0:02:57]} 5. Nc3 {[%clk 0:03:03]}  a6 {[%clk 0:02:57]} 6. Bg5 {[%clk 0:03:03]}  e6 {[%clk 0:02:57]} 7. f4 {[%clk 0:03:03]}  Be7 {[%clk 0:02:56]} 8. Qf3 {[%clk 0:03:03]}  Nbd7 {[%clk 0:02:56]} 9. O-O-O {[%clk 0:03:02]}  Qc7 {[%clk 0:02:51]} 10. Bd3 {[%clk 0:03:02]}  h6 {[%clk 0:02:49]} 11. Bh4 {[%clk 0:03:01]}  g5 {[%clk 0:02:48]} 12. fxg5 {[%clk 0:03:01]}  Ne5 {[%clk 0:02:48]} 13. Qe2 {[%clk 0:03:01]}  hxg5 {[%clk 0:02:46]} 14. Bxg5 {[%clk 0:02:55]}  Nfg4 {[%clk 0:02:25]} 15. Bxe7 {[%clk 0:02:51]}  Qxe7 {[%clk 0:02:24]} 16. Nf3 {[%clk 0:02:51]}  Bd7 {[%clk 0:02:20]} 17. h3 {[%clk 0:02:50]}  Nxf3 {[%clk 0:02:19]} 18. gxf3 {[%clk 0:02:51]}  Ne5 {[%clk 0:02:18]} 19. f4 {[%clk 0:02:50]}  Nc6 {[%clk 0:02:18]} 20. Qf2 {[%clk 0:02:47]}  Qh4 {[%clk 0:02:08]} 21. Qe3 {[%clk 0:02:47]}  O-O-O {[%clk 0:02:05]} 22. Be2 {[%clk 0:02:47]}  Qe7 {[%clk 0:01:37]} 23. Rd3 {[%clk 0:02:45]}  Be8 {[%clk 0:01:19]} 24. Rhd1 {[%clk 0:02:43]}  f6 {[%clk 0:01:18]} 25. Na4 {[%clk 0:02:38]}  Bf7 {[%clk 0:01:14]} 26. Nb6+ {[%clk 0:02:37]}  Kb8 {[%clk 0:01:13]} 27. a3 {[%clk 0:02:35]}  Qc7 {[%clk 0:01:05]} 28. Rc3 {[%clk 0:02:31]}  Rh4 {[%clk 0:00:49]} 29. Bg4 {[%clk 0:02:22]}  Bh5 {[%clk 0:00:38]} 30. Bxh5 {[%clk 0:02:15]}  Rxh5 {[%clk 0:00:37]} 31. Kb1 {[%clk 0:02:08]}  Rdh8 {[%clk 0:00:33]} 32. Nc4 {[%clk 0:02:06]}  Rxh3 {[%clk 0:00:31]} 33. Qxh3 {[%clk 0:02:03]}  Rxh3 {[%clk 0:00:31]} 34. Rxh3 {[%clk 0:02:03]}  d5 {[%clk 0:00:26]} 35. exd5 {[%clk 0:02:04]}  exd5 {[%clk 0:00:25]} 36. Ne3 {[%clk 0:01:59]}  Qxf4 {[%clk 0:00:22]} 37. Nxd5 {[%clk 0:01:58]}  Qg4 {[%clk 0:00:19]} 38. Rhh1 {[%clk 0:01:59]}  f5 {[%clk 0:00:19]} 39. Rhf1 {[%clk 0:01:59]}  Ne5 {[%clk 0:00:16]} 40. Ne3 {[%clk 0:01:59]}  Qe4 {[%clk 0:00:14]} 41. Nxf5 {[%clk 0:01:58]}  Nc4 {[%clk 0:00:14]} 42. Nd6 {[%clk 0:01:58]}  Nxd6 {[%clk 0:00:11]} 43. Rxd6 {[%clk 0:01:58]}  a5 {[%clk 0:00:11]} 44. Rfd1 {[%clk 0:01:55]}  Ka7 {[%clk 0:00:10]} 45. R6d4 {[%clk 0:01:51]}  Qe7 {[%clk 0:00:09]} 46. a4 {[%clk 0:01:52]}  Qc7 {[%clk 0:00:09]} 47. Rd5 {[%clk 0:01:51]}  Ka6 {[%clk 0:00:07]} 48. b3 {[%clk 0:01:49]}  Qc3 {[%clk 0:00:07]} 49. Rb5 {[%clk 0:01:48]}  b6 {[%clk 0:00:06]} 50. Rd6 {[%clk 0:01:45]}  Ka7 {[%clk 0:00:04]} 51. Rbxb6 {[%clk 0:01:41]}  Qe1+ {[%clk 0:00:03]} 52. Ka2 {[%clk 0:01:41]}  Qc3 {[%clk 0:00:03]} 53. Ra6+ {[%clk 0:01:39]}  Kb7 {[%clk 0:00:03]} 54. Rdb6+ {[%clk 0:01:39]}  Kc7 {[%clk 0:00:03]} 55. Rc6+ {[%clk 0:01:39]}  Qxc6 {[%clk 0:00:03]} 56. Rxc6+ {[%clk 0:01:40]}  Kxc6 {[%clk 0:00:02]} 57. c3 {[%clk 0:01:40]}  Kc5 {[%clk 0:00:03]} 58. Ka3 {[%clk 0:01:40]} 1-0


[Site "https://www.chess.com"]